{"text_format":"1","workbook":"xlsx","n_sheets":4,"sheets":["入力","ごみ収集日のお知らせ","ごみ分別表","リスト"],"not_rendered":{"charts":0,"images":38,"macros":1,"external_links":0,"defined_names":3,"comments":1,"pivot_tables":0},"unopened":[],"bounds":{"document_bytes":16777216,"sheet_cells":100000,"rows_first":2000,"rows_last":500,"rows_between":2000,"halvings":0,"cell_chars":16384,"cell_head_chars":4096},"cells_cut":0,"cells_raw":0,"read":"whole","date_system":"1904"}

{"sheet":"入力","index":0,"n_rows":39,"n_cols":27,"rows_kept":39,"cut":false,"hidden":false,"merged":[[14,13,14,14],[15,13,15,14],[16,13,16,14],[17,13,17,14],[7,13,7,14],[8,13,8,14],[9,13,9,14],[11,13,11,14],[19,1,19,2],[19,3,19,12],[11,11,11,12],[8,7,8,8],[9,7,9,8],[8,11,8,12],[8,1,8,2],[9,11,9,12],[9,9,9,10],[8,9,8,10],[9,3,9,4],[9,5,9,6],[14,11,14,12],[16,11,16,12],[15,11,15,12],[15,9,15,10],[1,6,1,7],[7,11,7,12],[7,9,7,10],[3,1,3,9],[7,7,7,8],[4,1,4,9],[7,3,7,4],[7,5,7,6],[21,1,21,2],[21,3,21,12],[11,1,11,2],[7,1,7,2],[8,3,8,4],[8,5,8,6],[11,3,11,4],[11,5,11,6],[9,1,9,2],[11,9,11,10],[17,11,17,12],[17,9,17,10],[17,7,17,8],[17,5,17,6],[14,9,14,10],[16,9,16,10],[14,5,14,6],[16,5,16,6],[14,7,14,8],[16,7,16,8],[15,7,15,8],[15,5,15,6],[17,3,17,4],[15,1,15,2],[17,1,17,2],[14,1,14,2],[16,1,16,2],[14,3,14,4],[16,3,16,4],[15,3,15,4]]}
[]
[null,"地区№",1]
[]
[null,{"$f":"IF(LOOKUP($C$2,リスト!$B:$B,リスト!$D:$D)=\"\",\"\",LOOKUP($C$2,リスト!$B:$B,リスト!$D:$D))","v":"KIMIGAMINE"},null,null,null,null,null,null,null,null,"地区"]
[null,{"$f":"IF(LOOKUP($C$2,リスト!$B:$B,リスト!$C:$C)=\"\",\"\",LOOKUP($C$2,リスト!$B:$B,リスト!$C:$C))","v":"君が峰"},null,null,null,null,null,null,null,null,"地区"]
[]
[]
[null,"可燃ごみ",null,"あらごみ",null,"埋立ごみ",null,"プラスチック類",null,"紙パック/ペットボトル",null,"古　紙",null,"空きびん"]
[null,"〈週２回〉",null,"〈月１回〉",null,"〈月１回〉",null,"〈月２回〉",null,"〈月１回〉",null,"〈月１回〉",null,"〈月１回〉"]
[null,"毎週",null,"毎月",null,"毎月",null,"毎週",null,"毎月",null,"毎月",null,"毎月"]
[null,{"$f":"IF(LOOKUP($C$2,リスト!$B:$B,リスト!$E:$E)=\"\",\"\",LOOKUP($C$2,リスト!$B:$B,リスト!$E:$E))","v":"月"},null,{"$f":"IF(LOOKUP($C$2,リスト!$B:$B,リスト!$I:$I)=\"\",\"\",LOOKUP($C$2,リスト!$B:$B,リスト!$I:$I))","v":3},null,{"$f":"IF(LOOKUP($C$2,リスト!$B:$B,リスト!$M:$M)=\"\",\"\",LOOKUP($C$2,リスト!$B:$B,リスト!$M:$M))","v":1},null,null,null,{"$f":"IF(LOOKUP($C$2,リスト!$B:$B,リスト!$Y:$Y)=\"\",\"\",LOOKUP($C$2,リスト!$B:$B,リスト!$Y:$Y))","v":4},null,{"$f":"IF(LOOKUP($C$2,リスト!$B:$B,リスト!$AC:$AC)=\"\",\"\",LOOKUP($C$2,リスト!$B:$B,リスト!$AC:$AC))","v":4},null,{"$f":"IF(LOOKUP($C$2,リスト!$B:$B,リスト!$AG:$AG)=\"\",\"\",LOOKUP($C$2,リスト!$B:$B,リスト!$AG:$AG))","v":4}]
[null,"と",null,"の",null,"の",null,{"$f":"IF(LOOKUP($C$2,リスト!$B:$B,リスト!$R:$R)=\"\",\"\",LOOKUP($C$2,リスト!$B:$B,リスト!$R:$R))","v":"水"}]
[null,{"$f":"IF(LOOKUP($C$2,リスト!$B:$B,リスト!$F:$F)=\"\",\"\",LOOKUP($C$2,リスト!$B:$B,リスト!$F:$F))","v":"木"},null,{"$f":"IF(LOOKUP($C$2,リスト!$B:$B,リスト!$J:$J)=\"\",\"\",LOOKUP($C$2,リスト!$B:$B,リスト!$J:$J))","v":"金"},null,{"$f":"IF(LOOKUP($C$2,リスト!$B:$B,リスト!$N:$N)=\"\",\"\",LOOKUP($C$2,リスト!$B:$B,リスト!$N:$N))","v":"金"},null,null,null,{"$f":"IF(LOOKUP($C$2,リスト!$B:$B,リスト!$Z:$Z)=\"\",\"\",LOOKUP($C$2,リスト!$B:$B,リスト!$Z:$Z))","v":"火"},null,{"$f":"IF(LOOKUP($C$2,リスト!$B:$B,リスト!$AD:$AD)=\"\",\"\",LOOKUP($C$2,リスト!$B:$B,リスト!$AD:$AD))","v":"金"},null,{"$f":"IF(LOOKUP($C$2,リスト!$B:$B,リスト!$AH:$AH)=\"\",\"\",LOOKUP($C$2,リスト!$B:$B,リスト!$AH:$AH))","v":"月"}]
[]
[null,{"$f":"IF(LOOKUP($C$2,リスト!$B:$B,リスト!$AI:$AI)=\"\",\"\",LOOKUP($C$2,リスト!$B:$B,リスト!$AI:$AI))","v":"MONDAY"},{"$f":"IF(LOOKUP($C$2,リスト!$B:$B,リスト!$F:$F)=\"\",\"\",LOOKUP($C$2,リスト!$B:$B,リスト!$F:$F))","v":"木"},{"$f":"IF(LOOKUP($C$2,リスト!$B:$B,リスト!$AM:$AM)=\"\",\"\",LOOKUP($C$2,リスト!$B:$B,リスト!$AM:$AM))","v":"THIRD"},{"$f":"IF(LOOKUP($C$2,リスト!$B:$B,リスト!$F:$F)=\"\",\"\",LOOKUP($C$2,リスト!$B:$B,リスト!$F:$F))","v":"木"},{"$f":"IF(LOOKUP($C$2,リスト!$B:$B,リスト!$AQ:$AQ)=\"\",\"\",LOOKUP($C$2,リスト!$B:$B,リスト!$AQ:$AQ))","v":"FIRST"},{"$f":"IF(LOOKUP($C$2,リスト!$B:$B,リスト!$F:$F)=\"\",\"\",LOOKUP($C$2,リスト!$B:$B,リスト!$F:$F))","v":"木"},null,{"$f":"IF(LOOKUP($C$2,リスト!$B:$B,リスト!$F:$F)=\"\",\"\",LOOKUP($C$2,リスト!$B:$B,リスト!$F:$F))","v":"木"},{"$f":"IF(LOOKUP($C$2,リスト!$B:$B,リスト!$BC:$BC)=\"\",\"\",LOOKUP($C$2,リスト!$B:$B,リスト!$BC:$BC))","v":"FOURTH"},{"$f":"IF(LOOKUP($C$2,リスト!$B:$B,リスト!$F:$F)=\"\",\"\",LOOKUP($C$2,リスト!$B:$B,リスト!$F:$F))","v":"木"},{"$f":"IF(LOOKUP($C$2,リスト!$B:$B,リスト!$BG:$BG)=\"\",\"\",LOOKUP($C$2,リスト!$B:$B,リスト!$BG:$BG))","v":"FOURTH"},{"$f":"IF(LOOKUP($C$2,リスト!$B:$B,リスト!$F:$F)=\"\",\"\",LOOKUP($C$2,リスト!$B:$B,リスト!$F:$F))","v":"木"},{"$f":"IF(LOOKUP($C$2,リスト!$B:$B,リスト!$BJ:$BJ)=\"\",\"\",LOOKUP($C$2,リスト!$B:$B,リスト!$BJ:$BJ))","v":"FOURTH"},{"$f":"IF(LOOKUP($C$2,リスト!$B:$B,リスト!$F:$F)=\"\",\"\",LOOKUP($C$2,リスト!$B:$B,リスト!$F:$F))","v":"木"}]
[null,null,null,null,null,null,null,{"$f":"IF(LOOKUP($C$2,リスト!$B:$B,リスト!$AV:$AV)=\"\",\"\",LOOKUP($C$2,リスト!$B:$B,リスト!$AV:$AV))","v":"WEDNESDAY"},{"$f":"IF(LOOKUP($C$2,リスト!$B:$B,リスト!$F:$F)=\"\",\"\",LOOKUP($C$2,リスト!$B:$B,リスト!$F:$F))","v":"木"}]
[null,{"$f":"IF(LOOKUP($C$2,リスト!$B:$B,リスト!$AJ:$AJ)=\"\",\"\",LOOKUP($C$2,リスト!$B:$B,リスト!$AJ:$AJ))","v":"THURSDAY"},{"$f":"IF(LOOKUP($C$2,リスト!$B:$B,リスト!$F:$F)=\"\",\"\",LOOKUP($C$2,リスト!$B:$B,リスト!$F:$F))","v":"木"},{"$f":"IF(LOOKUP($C$2,リスト!$B:$B,リスト!$AN:$AN)=\"\",\"\",LOOKUP($C$2,リスト!$B:$B,リスト!$AN:$AN))","v":"FRIDAY"},{"$f":"IF(LOOKUP($C$2,リスト!$B:$B,リスト!$F:$F)=\"\",\"\",LOOKUP($C$2,リスト!$B:$B,リスト!$F:$F))","v":"木"},{"$f":"IF(LOOKUP($C$2,リスト!$B:$B,リスト!$AR:$AR)=\"\",\"\",LOOKUP($C$2,リスト!$B:$B,リスト!$AR:$AR))","v":"FRIDAY"},{"$f":"IF(LOOKUP($C$2,リスト!$B:$B,リスト!$F:$F)=\"\",\"\",LOOKUP($C$2,リスト!$B:$B,リスト!$F:$F))","v":"木"},null,{"$f":"IF(LOOKUP($C$2,リスト!$B:$B,リスト!$F:$F)=\"\",\"\",LOOKUP($C$2,リスト!$B:$B,リスト!$F:$F))","v":"木"},{"$f":"IF(LOOKUP($C$2,リスト!$B:$B,リスト!$BD:$BD)=\"\",\"\",LOOKUP($C$2,リスト!$B:$B,リスト!$BD:$BD))","v":"TUESDAY"},{"$f":"IF(LOOKUP($C$2,リスト!$B:$B,リスト!$F:$F)=\"\",\"\",LOOKUP($C$2,リスト!$B:$B,リスト!$F:$F))","v":"木"},{"$f":"IF(LOOKUP($C$2,リスト!$B:$B,リスト!$BH:$BH)=\"\",\"\",LOOKUP($C$2,リスト!$B:$B,リスト!$BH:$BH))","v":"FRIDAY"},{"$f":"IF(LOOKUP($C$2,リスト!$B:$B,リスト!$F:$F)=\"\",\"\",LOOKUP($C$2,リスト!$B:$B,リスト!$F:$F))","v":"木"},{"$f":"IF(LOOKUP($C$2,リスト!$B:$B,リスト!$BK:$BK)=\"\",\"\",LOOKUP($C$2,リスト!$B:$B,リスト!$BK:$BK))","v":"MONDAY"},{"$f":"IF(LOOKUP($C$2,リスト!$B:$B,リスト!$F:$F)=\"\",\"\",LOOKUP($C$2,リスト!$B:$B,リスト!$F:$F))","v":"木"}]
[null,null,null,null,null,null,null,null,{"$f":"IF(LOOKUP($C$2,リスト!$B:$B,リスト!$F:$F)=\"\",\"\",LOOKUP($C$2,リスト!$B:$B,リスト!$F:$F))","v":"木"}]
[]
[null,"空きびん備考１"]
[]
[null,"空きびん備考２"]
[]
[]
[]
[]
[]
[]
[]
[]
[]
[]
[]
[]
[]
[]
[]
[]
[null,null,null,null,null,null,null,null,null,null,null,null,null,null,null,null,null,null,null,null,null,null,null,null,null,null,"火"]

{"sheet":"ごみ収集日のお知らせ","index":1,"n_rows":34,"n_cols":111,"rows_kept":34,"cut":false,"hidden":false,"merged":[[26,17,26,34],[27,17,27,34],[28,17,28,34],[29,17,29,34],[30,17,30,34],[26,0,26,16],[27,0,27,16],[29,0,29,16],[30,0,30,16],[28,0,28,16],[33,0,34,109],[33,110,34,127],[32,0,32,16],[31,53,31,71],[31,72,31,90],[31,91,31,109],[31,110,31,127],[32,53,32,71],[32,72,32,90],[32,91,32,109],[31,17,31,34],[32,17,32,34],[32,110,32,127],[31,0,31,16],[23,35,25,52],[23,53,23,127],[24,53,25,71],[24,91,25,109],[24,110,25,127],[24,72,24,90],[25,72,25,90],[30,35,30,52],[31,35,31,52],[32,35,32,52],[26,53,26,71],[26,72,26,90],[28,53,28,71],[28,72,28,90],[30,53,30,71],[30,72,30,90],[26,35,26,52],[27,35,27,52],[28,35,28,52],[29,35,29,52],[15,0,15,123],[15,124,15,128],[28,91,28,109],[28,110,28,127],[29,53,29,71],[29,72,29,90],[29,91,29,109],[29,110,29,127],[26,91,26,109],[26,110,26,127],[27,53,27,71],[27,72,27,90],[27,91,27,109],[27,110,27,127],[23,0,25,16],[23,17,25,34],[0,0,0,128],[1,0,1,92],[1,93,1,118],[1,119,1,128],[14,0,14,128],[10,0,10,128],[11,0,11,128],[12,0,12,128],[13,124,13,128],[30,91,30,109],[30,110,30,127],[3,0,3,122],[4,0,8,128],[9,0,9,123],[9,124,9,128],[16,0,16,128],[13,0,13,123],[20,0,20,128],[21,0,21,123],[21,124,21,128],[22,0,22,128],[17,0,17,123],[17,124,17,128],[19,0,19,123],[19,124,19,128]]}
[{"$f":"入力!B4","v":"KIMIGAMINE"}]
[null,null,null,null,null,null,null,null,null,null,null,null,null,null,null,null,null,null,null,null,null,null,null,null,null,null,null,null,null,null,null,null,null,null,null,null,null,null,null,null,null,null,null,null,null,null,null,null,null,null,null,null,null,null,null,null,null,null,null,null,null,null,null,null,null,null,null,null,null,null,null,null,null,null,null,null,null,null,null,null,null,null,null,null,null,null,null,null,null,null,null,null,null,"City of Miki"]
[]
[]
[]
[]
[]
[]
[]
["Please follow the rubbish disposal rules."]
["１　Please sort your home rubbish into four types: burnables, no-burnables, buried  "]
["    rubbish and recyclables. (plastics, cartons, PET bottles,Used paper and emptied bottles) "]
["２　Please take your rubbish out during the period from 5:00 to 8:00 in the morning                                                                                                                                                ごみは、家庭でキチンと分別して、収集日の決められた時間(午前"]
["　  to your designated rubbish disposal site. "]
["３　Please refer to the Rubbish Sorting and Collection Day Chart (Gomidashi Chart)                                                                                                                                                                               "]
["    for details of how to deal with your rubbish. "]
["４　Please use some transparent or noncolored vinyl bags for taking out your rubbish.  "]
["　　Do not use bags of cardboard or fertilizer."]
[]
["Your Collection Days "]
[]
["Please use the provided stickers on your 'Rubbish Collection Calendar.'"]
[]
["Burnables",null,null,null,null,null,null,null,null,null,null,null,null,null,null,null,null,"Non Burnables ",null,null,null,null,null,null,null,null,null,null,null,null,null,null,null,null,null,"Buried Rubbish ",null,null,null,null,null,null,null,null,null,null,null,null,null,null,null,null,null,"Recycables "]
[null,null,null,null,null,null,null,null,null,null,null,null,null,null,null,null,null,null,null,null,null,null,null,null,null,null,null,null,null,null,null,null,null,null,null,null,null,null,null,null,null,null,null,null,null,null,null,null,null,null,null,null,null,"Plastics",null,null,null,null,null,null,null,null,null,null,null,null,null,null,null,null,null,null,"Carton packs ",null,null,null,null,null,null,null,null,null,null,null,null,null,null,null,null,null,null,"Used paper",null,null,null,null,null,null,null,null,null,null,null,null,null,null,null,null,null,null,"Emptied Bottles"]
[null,null,null,null,null,null,null,null,null,null,null,null,null,null,null,null,null,null,null,null,null,null,null,null,null,null,null,null,null,null,null,null,null,null,null,null,null,null,null,null,null,null,null,null,null,null,null,null,null,null,null,null,null,null,null,null,null,null,null,null,null,null,null,null,null,null,null,null,null,null,null,null,"PET Bottles"]
["Twice a week",null,null,null,null,null,null,null,null,null,null,null,null,null,null,null,null,"Once a month",null,null,null,null,null,null,null,null,null,null,null,null,null,null,null,null,null,"Once a month",null,null,null,null,null,null,null,null,null,null,null,null,null,null,null,null,null,"Once a week",null,null,null,null,null,null,null,null,null,null,null,null,null,null,null,null,null,null,"Once a month",null,null,null,null,null,null,null,null,null,null,null,null,null,null,null,null,null,null,"Once a month",null,null,null,null,null,null,null,null,null,null,null,null,null,null,null,null,null,null,"Once a month"]
["Every Week",null,null,null,null,null,null,null,null,null,null,null,null,null,null,null,null,"Every Month",null,null,null,null,null,null,null,null,null,null,null,null,null,null,null,null,null,"Every Month",null,null,null,null,null,null,null,null,null,null,null,null,null,null,null,null,null,"Every Week",null,null,null,null,null,null,null,null,null,null,null,null,null,null,null,null,null,null,"Every Month",null,null,null,null,null,null,null,null,null,null,null,null,null,null,null,null,null,null,"Every Month",null,null,null,null,null,null,null,null,null,null,null,null,null,null,null,null,null,null,"Every Month"]
[null,null,null,null,null,null,null,null,null,null,null,null,null,null,null,null,null,null,null,null,null,null,null,null,null,null,null,null,null,null,null,null,null,null,null,null,null,null,null,null,null,null,null,null,null,null,null,null,null,null,null,null,null,{"$f":"\"THE \"&入力!H15","v":"THE "}]
[{"$f":"入力!B15","v":"MONDAY"},null,null,null,null,null,null,null,null,null,null,null,null,null,null,null,null,{"$f":"\"THE \"&入力!D15","v":"THE THIRD"},null,null,null,null,null,null,null,null,null,null,null,null,null,null,null,null,null,{"$f":"\"THE \"&入力!F15","v":"THE FIRST"},null,null,null,null,null,null,null,null,null,null,null,null,null,null,null,null,null,{"$f":"入力!H16","v":"WEDNESDAY"},null,null,null,null,null,null,null,null,null,null,null,null,null,null,null,null,null,null,{"$f":"\"THE \"&入力!J15","v":"THE FOURTH"},null,null,null,null,null,null,null,null,null,null,null,null,null,null,null,null,null,null,{"$f":"\"THE \"&入力!L15","v":"THE FOURTH"},null,null,null,null,null,null,null,null,null,null,null,null,null,null,null,null,null,null,{"$f":"\"THE \"&入力!N15","v":"THE FOURTH"}]
["AND",null,null,null,null,null,null,null,null,null,null,null,null,null,null,null,null,{"$f":"入力!D17","v":"FRIDAY"},null,null,null,null,null,null,null,null,null,null,null,null,null,null,null,null,null,{"$f":"入力!F17","v":"FRIDAY"},null,null,null,null,null,null,null,null,null,null,null,null,null,null,null,null,null,null,null,null,null,null,null,null,null,null,null,null,null,null,null,null,null,null,null,null,{"$f":"入力!J17","v":"TUESDAY"},null,null,null,null,null,null,null,null,null,null,null,null,null,null,null,null,null,null,{"$f":"入力!L17","v":"FRIDAY"},null,null,null,null,null,null,null,null,null,null,null,null,null,null,null,null,null,null,{"$f":"入力!N17","v":"MONDAY"}]
[{"$f":"入力!B17","v":"THURSDAY"},null,null,null,null,null,null,null,null,null,null,null,null,null,null,null,null,null,null,null,null,null,null,null,null,null,null,null,null,null,null,null,null,null,null,null,null,null,null,null,null,null,null,null,null,null,null,null,null,null,null,null,null,{"$f":"\"THE \"&入力!H17","v":"THE "}]
[null,null,null,null,null,null,null,null,null,null,null,null,null,null,null,null,null,null,null,null,null,null,null,null,null,null,null,null,null,null,null,null,null,null,null,null,null,null,null,null,null,null,null,null,null,null,null,null,null,null,null,null,null,{"$f":"入力!H18","v":0}]
["To The Gomi Station (Rubbish Collection Site)",null,null,null,null,null,null,null,null,null,null,null,null,null,null,null,null,null,null,null,null,null,null,null,null,null,null,null,null,null,null,null,null,null,null,null,null,null,null,null,null,null,null,null,null,null,null,null,null,null,null,null,null,null,null,null,null,null,null,null,null,null,null,null,null,null,null,null,null,null,null,null,null,null,null,null,null,null,null,null,null,null,null,null,null,null,null,null,null,null,null,null,null,null,null,null,null,null,null,null,null,null,null,null,null,null,null,null,null,null,"to the Glass Bottle disposal area "]

{"sheet":"ごみ分別表","index":2,"n_rows":159,"n_cols":217,"rows_kept":159,"cut":false,"hidden":false,"merged":[[59,150,60,170],[13,0,16,16],[17,0,44,16],[13,17,16,49],[81,9,96,16],[48,5,58,7],[65,10,79,13],[66,5,77,8],[46,10,61,13],[46,17,48,49],[130,23,132,44],[65,17,66,49],[145,165,156,167],[145,161,156,163],[81,160,143,168],[153,23,155,44],[136,23,138,44],[149,23,151,44],[104,17,106,49],[71,22,73,43],[115,23,117,44],[92,19,93,47],[75,22,77,43],[160,4,161,23],[112,9,122,16],[123,9,143,16],[81,0,157,8],[83,17,84,49],[158,28,161,224],[158,4,159,26],[97,9,111,16],[145,10,156,12],[145,17,147,49],[145,13,156,15],[88,19,89,47],[90,19,91,47],[110,23,112,44],[130,171,132,221],[124,17,125,49],[0,119,3,238],[27,22,29,43],[35,22,37,43],[52,22,54,43],[17,216,80,224],[20,17,22,49],[46,54,47,209],[28,55,29,85],[13,50,16,224],[20,136,22,167],[57,22,59,43],[42,21,43,45],[32,29,33,34],[72,92,73,109],[76,90,77,111],[62,21,62,45]]}
[null,null,null,null,null,null,null,null,null,null,null,null,null,null,null,null,null,null,null,null,null,null,null,null,null,null,null,null,null,null,null,null,null,null,null,null,null,null,null,null,null,null,null,null,null,null,null,null,null,null,null,null,null,null,null,null,null,null,null,null,null,null,null,null,null,null,null,null,null,null,null,null,null,null,null,null,null,null,null,null,null,null,null,null,null,null,null,null,null,null,null,null,null,null,null,null,null,null,null,null,null,null,null,null,null,null,null,null,null,null,null,null,null,null,null,null,null,null,null,"                        from January 2015"]
[]
[]
[]
[]
[]
[]
[]
[]
[]
[]
[]
[]
["Type",null,null,null,null,null,null,null,null,null,null,null,null,null,null,null,null,"Collection Day",null,null,null,null,null,null,null,null,null,null,null,null,null,null,null,null,null,null,null,null,null,null,null,null,null,null,null,null,null,null,null,null,"Description of Items "]
[]
[]
[]
["Burnables",null,null,null,null,null,null,null,null,null,null,null,null,null,null,null,null,null,null,null,null,null,null,null,null,null,null,null,null,null,null,null,null,null,null,null,null,null,null,null,null,null,null,null,null,null,null,null,null,null,null,null,null,null,null,null,null,null,null,null,null,null,null,null,null,null,null,null,null,null,null,null,null,null,null,null,null,null,null,null,null,null,null,null,null,null,null,null,null,null,null,null,null,null,null,null,null,null,null,null,null,null,null,null,null,null,null,null,null,null,null,null,null,null,null,null,null,null,null,null,null,null,null,null,null,null,null,null,null,null,null,null,null,null,null,null,null,null,null,null,null,null,null,null,null,null,null,null,null,null,null,null,null,null,null,null,null,null,null,null,null,null,null,null,null,null,null,null,null,null,null,null,null,null,null,null,null,null,null,null,null,null,null,null,null,null,null,null,null,null,null,null,null,null,null,null,null,null,null,null,null,null,null,null,null,null,null,null,null,null,null,null,null,null,null,null,"Rubbish Collection Site"]
[]
[]
[null,null,null,null,null,null,null,null,null,null,null,null,null,null,null,null,null,"〈Twice a week〉"]
[]
[]
[]
[]
[]
[]
[null,null,null,null,null,null,null,null,null,null,null,null,null,null,null,null,null,null,null,null,null,null,{"$f":"入力!B15","v":"MONDAY"}]
[]
[]
[]
[]
[null,null,null,null,null,null,null,null,null,null,null,null,null,null,null,null,null,null,null,null,null,null,null,null,null,null,null,null,null,"AND"]
[]
[]
[null,null,null,null,null,null,null,null,null,null,null,null,null,null,null,null,null,null,null,null,null,null,{"$f":"入力!B17","v":"THURSDAY"}]
[]
[]
[]
[]
[]
[]
[]
[]
[]
[]
[null,null,null,null,null,null,null,null,null,null,"Burnables",null,null,null,null,null,null,"〈Once a month 〉"]
[]
[null,null,null,null,null,"Non"]
[]
[]
[]
[null,null,null,null,null,null,null,null,null,null,null,null,null,null,null,null,null,null,null,null,null,null,{"$f":"入力!D15","v":"THIRD"}]
[]
[]
[]
[]
[null,null,null,null,null,null,null,null,null,null,null,null,null,null,null,null,null,null,null,null,null,null,{"$f":"入力!D17","v":"FRIDAY"}]
[]
[]
[]
[]
[]
[]
[]
[null,null,null,null,null,null,null,null,null,null,"Rubbish",null,null,null,null,null,null,"〈Once a month〉"]
[null,null,null,null,null,"Buried "]
[]
[]
[]
[]
[null,null,null,null,null,null,null,null,null,null,null,null,null,null,null,null,null,null,null,null,null,null,{"$f":"入力!F15","v":"FIRST"}]
[]
[]
[]
[null,null,null,null,null,null,null,null,null,null,null,null,null,null,null,null,null,null,null,null,null,null,{"$f":"入力!F17","v":"FRIDAY"}]
[]
[]
[]
[]
[]
["Recyclable Rubbish ",null,null,null,null,null,null,null,null,"Plastics",null,null,null,null,null,null,null,null,null,null,null,null,null,null,null,null,null,null,null,null,null,null,null,null,null,null,null,null,null,null,null,null,null,null,null,null,null,null,null,null,null,null,null,null,null,null,null,null,null,null,null,null,null,null,null,null,null,null,null,null,null,null,null,null,null,null,null,null,null,null,null,null,null,null,null,null,null,null,null,null,null,null,null,null,null,null,null,null,null,null,null,null,null,null,null,null,null,null,null,null,null,null,null,null,null,null,null,null,null,null,null,null,null,null,null,null,null,null,null,null,null,null,null,null,null,null,null,null,null,null,null,null,null,null,null,null,null,null,null,null,null,null,null,null,null,null,null,null,null,null,"Rubbish Collection Site"]
[]
[null,null,null,null,null,null,null,null,null,null,null,null,null,null,null,null,null,"＜Once a week＞"]
[]
[]
[]
[]
[]
[]
[null,null,null,null,null,null,null,null,null,null,null,null,null,null,null,null,null,null,null,{"$f":"入力!H16","v":"WEDNESDAY"}]
[]
[]
[]
[]
[]
[]
[null,null,null,null,null,null,null,null,null,"PET Bottles"]
[]
[]
[]
[]
[]
[]
[null,null,null,null,null,null,null,null,null,null,null,null,null,null,null,null,null,"〈Once a month〉"]
[]
[]
[]
[]
[]
[null,null,null,null,null,null,null,null,null,null,null,null,null,null,null,null,null,null,null,null,null,null,null,{"$f":"入力!J15","v":"FOURTH"}]
[]
[null,null,null,null,null,null,null,null,null,"Cartons"]
[]
[]
[null,null,null,null,null,null,null,null,null,null,null,null,null,null,null,null,null,null,null,null,null,null,null,{"$f":"入力!J17","v":"TUESDAY"}]
[]
[]
[]
[]
[]
[]
[]
[null,null,null,null,null,null,null,null,null,"Used paper"]
[null,null,null,null,null,null,null,null,null,null,null,null,null,null,null,null,null,"〈Once a month〉"]
[]
[]
[]
[]
[]
[null,null,null,null,null,null,null,null,null,null,null,null,null,null,null,null,null,null,null,null,null,null,null,{"$f":"入力!L15","v":"FOURTH"}]
[]
[]
[]
[]
[]
[null,null,null,null,null,null,null,null,null,null,null,null,null,null,null,null,null,null,null,null,null,null,null,{"$f":"入力!L17","v":"FRIDAY"}]
[]
[]
[]
[]
[]
[]
[]
[]
[null,null,null,null,null,null,null,null,null,null,"Glass",null,null,"Bottles",null,null,null,"〈Once a month〉",null,null,null,null,null,null,null,null,null,null,null,null,null,null,null,null,null,null,null,null,null,null,null,null,null,null,null,null,null,null,null,null,null,null,null,null,null,null,null,null,null,null,null,null,null,null,null,null,null,null,null,null,null,null,null,null,null,null,null,null,null,null,null,null,null,null,null,null,null,null,null,null,null,null,null,null,null,null,null,null,null,null,null,null,null,null,null,null,null,null,null,null,null,null,null,null,null,null,null,null,null,null,null,null,null,null,null,null,null,null,null,null,null,null,null,null,null,null,null,null,null,null,null,null,null,null,null,null,null,null,null,null,null,null,null,null,null,null,null,null,null,null,null,"Bottles",null,null,null,"Post for"]
[]
[]
[]
[null,null,null,null,null,null,null,null,null,null,null,null,null,null,null,null,null,null,null,null,null,null,null,{"$f":"入力!N15","v":"FOURTH"}]
[]
[]
[]
[null,null,null,null,null,null,null,null,null,null,null,null,null,null,null,null,null,null,null,null,null,null,null,{"$f":"入力!N17","v":"MONDAY"}]
[]
[]
[]
[]
[null,null,null,null,"For Inquiries",null,null,null,null,null,null,null,null,null,null,null,null,null,null,null,null,null,null,null,null,null,null,null,"Miki City Seiso Center（Kankyo-ka) Tel 83-2608　　"]

{"sheet":"リスト","index":3,"n_rows":64,"n_cols":63,"rows_kept":64,"cut":false,"hidden":false,"merged":[[0,60,0,62],[0,31,0,33],[0,23,0,25],[0,27,0,29],[0,4,0,5],[0,11,0,13],[0,15,0,17],[0,7,0,9],[0,19,0,21],[0,49,0,51],[0,53,0,55],[0,57,0,59],[0,34,0,35],[0,37,0,39],[0,41,0,43],[0,45,0,47]]}
[null,"№","自治会名",null,"可燃ごみ",null,null,"あらごみ",null,null,null,"埋立",null,null,null,"プラスチック",null,null,null,"プラスチック",null,null,null,"紙パック・ペット",null,null,null,"古　紙",null,null,null,"空きびん",null,null,"可燃ごみ",null,null,"あらごみ",null,null,null,"埋立",null,null,null,"プラスチック",null,null,null,"プラスチック",null,null,null,"紙パック・ペット",null,null,null,"古　紙",null,null,"空きびん"]
[null,1,"君が峰","KIMIGAMINE","月","木",null,"第",3,"金",null,"第",1,"金",null,"第",null,"水",null,"第",null,null,null,"第",4,"火",null,"第",4,"金",null,"第",4,"月",{"$f":"IF(E2=\"\",\"\",IF(E2=\"月\",\"MONDAY\",IF(E2=\"火\",\"TUESDAY\",IF(E2=\"水\",\"WEDNESDAY\",IF(E2=\"木\",\"THURSDAY\",IF(E2=\"金\",\"FRIDAY\",IF(E2=\"土\",\"SATURDAY\",\"\")))))))","v":"MONDAY"},{"$f":"IF(F2=\"\",\"\",IF(F2=\"月\",\"MONDAY\",IF(F2=\"火\",\"TUESDAY\",IF(F2=\"水\",\"WEDNESDAY\",IF(F2=\"木\",\"THURSDAY\",IF(F2=\"金\",\"FRIDAY\",\"\"))))))","v":"THURSDAY"},null,"第",{"$f":"IF(I2=\"\",\"\",IF(I2=1,\"FIRST\",IF(I2=2,\"SECOND\",IF(I2=3,\"THIRD\",IF(I2=4,\"FOURTH\",\"\")))))","v":"THIRD"},{"$f":"IF(J2=\"\",\"\",IF(J2=\"月\",\"MONDAY\",IF(J2=\"火\",\"TUESDAY\",IF(J2=\"水\",\"WEDNESDAY\",IF(J2=\"木\",\"THURSDAY\",IF(J2=\"金\",\"FRIDAY\",IF(J2=\"土\",\"SATURDAY\",\"\")))))))","v":"FRIDAY"},null,"第",{"$f":"IF(M2=\"\",\"\",IF(M2=1,\"FIRST\",IF(M2=2,\"SECOND\",IF(M2=3,\"THIRD\",IF(M2=4,\"FOURTH\",\"\")))))","v":"FIRST"},{"$f":"IF(N2=\"\",\"\",IF(N2=\"月\",\"MONDAY\",IF(N2=\"火\",\"TUESDAY\",IF(N2=\"水\",\"WEDNESDAY\",IF(N2=\"木\",\"THURSDAY\",IF(N2=\"金\",\"FRIDAY\",IF(N2=\"土\",\"SATURDAY\",\"\")))))))","v":"FRIDAY"},null,"第",{"$f":"IF(Q2=\"\",\"\",IF(Q2=1,\"FIRST\",IF(Q2=2,\"SECOND\",IF(Q2=3,\"THIRD\",IF(Q2=4,\"FOURTH\",\"\")))))","v":""},{"$f":"IF(R2=\"\",\"\",IF(R2=\"月\",\"MONDAY\",IF(R2=\"火\",\"TUESDAY\",IF(R2=\"水\",\"WEDNESDAY\",IF(R2=\"木\",\"THURSDAY\",IF(R2=\"金\",\"FRIDAY\",IF(R2=\"土\",\"SATURDAY\",\"\")))))))","v":"WEDNESDAY"},null,"第",{"$f":"IF(U2=\"\",\"\",IF(U2=1,\"FIRST\",IF(U2=2,\"SECOND\",IF(U2=3,\"THIRD\",IF(U2=4,\"FOURTH\",\"\")))))","v":""},{"$f":"IF(V2=\"\",\"\",IF(V2=\"月\",\"MONDAY\",IF(V2=\"火\",\"TUESDAY\",IF(V2=\"水\",\"WEDNESDAY\",IF(V2=\"木\",\"THURSDAY\",IF(V2=\"金\",\"FRIDAY\",IF(V2=\"土\",\"SATURDAY\",\"\")))))))","v":""},null,"第",{"$f":"IF(Y2=\"\",\"\",IF(Y2=1,\"FIRST\",IF(Y2=2,\"SECOND\",IF(Y2=3,\"THIRD\",IF(Y2=4,\"FOURTH\",\"\")))))","v":"FOURTH"},{"$f":"IF(Z2=\"\",\"\",IF(Z2=\"月\",\"MONDAY\",IF(Z2=\"火\",\"TUESDAY\",IF(Z2=\"水\",\"WEDNESDAY\",IF(Z2=\"木\",\"THURSDAY\",IF(Z2=\"金\",\"FRIDAY\",IF(Z2=\"土\",\"SATURDAY\",\"\")))))))","v":"TUESDAY"},null,"第",{"$f":"IF(AC2=\"\",\"\",IF(AC2=1,\"FIRST\",IF(AC2=2,\"SECOND\",IF(AC2=3,\"THIRD\",IF(AC2=4,\"FOURTH\",\"\")))))","v":"FOURTH"},{"$f":"IF(AD2=\"\",\"\",IF(AD2=\"月\",\"MONDAY\",IF(AD2=\"火\",\"TUESDAY\",IF(AD2=\"水\",\"WEDNESDAY\",IF(AD2=\"木\",\"THURSDAY\",IF(AD2=\"金\",\"FRIDAY\",IF(AD2=\"土\",\"SATURDAY\",\"\")))))))","v":"FRIDAY"},"第",{"$f":"IF(AG2=\"\",\"\",IF(AG2=1,\"FIRST\",IF(AG2=2,\"SECOND\",IF(AG2=3,\"THIRD\",IF(AG2=4,\"FOURTH\",\"\")))))","v":"FOURTH"},{"$f":"IF(AH2=\"\",\"\",IF(AH2=\"月\",\"MONDAY\",IF(AH2=\"火\",\"TUESDAY\",IF(AH2=\"水\",\"WEDNESDAY\",IF(AH2=\"木\",\"THURSDAY\",IF(AH2=\"金\",\"FRIDAY\",IF(AH2=\"土\",\"SATURDAY\",\"\")))))))","v":"MONDAY"}]
[null,2,"大塚・大塚県住","OOTUKA・OOTUKAKENJYUU","火","金",null,"第",3,"月",null,"第",1,"木",null,"第",null,"水",null,"第",null,null,null,"第",2,"木",null,"第",4,"月",null,"第",4,"月","TUESDAY","FRIDAY",null,"第","THIRD","MONDAY",null,"第","FIRST","THURSDAY",null,"第","","WEDNESDAY",null,"第","","",null,"第","SECOND","THURSDAY",null,"第","FOURTH","MONDAY","第",{"$f":"IF(AG3=\"\",\"\",IF(AG3=1,\"FIRST\",IF(AG3=2,\"SECOND\",IF(AG3=3,\"THIRD\",IF(AG3=4,\"FOURTH\",\"\")))))","v":"FOURTH"},{"$f":"IF(AH3=\"\",\"\",IF(AH3=\"月\",\"MONDAY\",IF(AH3=\"火\",\"TUESDAY\",IF(AH3=\"水\",\"WEDNESDAY\",IF(AH3=\"木\",\"THURSDAY\",IF(AH3=\"金\",\"FRIDAY\",IF(AH3=\"土\",\"SATURDAY\",\"\")))))))","v":"MONDAY"}]
[null,3,"芝町","SHIBAMATI","月","木",null,"第",3,"金",null,"第",1,"金",null,"第",null,"水",null,"第",null,null,null,"第",4,"火",null,"第",4,"金",null,"第",4,"月","MONDAY","THURSDAY",null,"第","THIRD","FRIDAY",null,"第","FIRST","FRIDAY",null,"第","","WEDNESDAY",null,"第","","",null,"第","FOURTH","TUESDAY",null,"第","FOURTH","FRIDAY","第","FOURTH","MONDAY"]
[null,4,"平山","HIRAYAMA","月","木",null,"第",3,"金",null,"第",1,"金",null,"第",null,"水",null,"第",null,null,null,"第",4,"火",null,"第",4,"金",null,"第",4,"月","MONDAY","THURSDAY",null,"第","THIRD","FRIDAY",null,"第","FIRST","FRIDAY",null,"第","","WEDNESDAY",null,"第","","",null,"第","FOURTH","TUESDAY",null,"第","FOURTH","FRIDAY","第","FOURTH","MONDAY"]
[null,5,"大手・東条町","OOTE・TOUJYOUTYOU","火","金",null,"第",3,"月",null,"第",1,"木",null,"第",null,"水",null,"第",null,null,null,"第",2,"木",null,"第",4,"月",null,"第",4,"月","TUESDAY","FRIDAY",null,"第","THIRD","MONDAY",null,"第","FIRST","THURSDAY",null,"第","","WEDNESDAY",null,"第","","",null,"第","SECOND","THURSDAY",null,"第","FOURTH","MONDAY","第","FOURTH","MONDAY"]
[null,6,"東紫美が丘・えびす・松が丘・山手台","TOSHIMIGAOKA・EBISU・MATUGAOKA・YAMATEDAI","月","木",null,"第",3,"水",null,"第",1,"水",null,"第",null,"水",null,"第",null,null,null,"第",3,"火",null,"第",4,"火",null,"第",4,"月","MONDAY","THURSDAY",null,"第","THIRD","WEDNESDAY",null,"第","FIRST","WEDNESDAY",null,"第","","WEDNESDAY",null,"第","","",null,"第","THIRD","TUESDAY",null,"第","FOURTH","TUESDAY","第","FOURTH","MONDAY"]
[null,7,"南が丘","MINAMIGAOKA","月","木",null,"第",1,"水",null,"第",3,"水",null,"第",null,"金",null,"第",null,null,null,"第",4,"水",null,"第",2,"水",null,"第",4,"火","MONDAY","THURSDAY",null,"第","FIRST","WEDNESDAY",null,"第","THIRD","WEDNESDAY",null,"第","","FRIDAY",null,"第","","",null,"第","FOURTH","WEDNESDAY",null,"第","SECOND","WEDNESDAY","第","FOURTH","TUESDAY"]
[null,8,"滑原・新町・大宮・上町","NAMERA・SHINMATI・OOMIYA・KANMATI","火","金",null,"第",4,"月",null,"第",2,"木",null,"第",null,"水",null,"第",null,null,null,"第",3,"木",null,"第",2,"月",null,"第",4,"月","TUESDAY","FRIDAY",null,"第","FOURTH","MONDAY",null,"第","SECOND","THURSDAY",null,"第","","WEDNESDAY",null,"第","","",null,"第","THIRD","THURSDAY",null,"第","SECOND","MONDAY","第","FOURTH","MONDAY"]
[null,9,"明石町","AKASHIMATI","火","金",null,"第",4,"月",null,"第",2,"木",null,"第",null,"水",null,"第",null,null,null,"第",3,"木",null,"第",2,"月",null,null,null,null,"TUESDAY","FRIDAY",null,"第","FOURTH","MONDAY",null,"第","SECOND","THURSDAY",null,"第","","WEDNESDAY",null,"第","","",null,"第","THIRD","THURSDAY",null,"第","SECOND","MONDAY","第","",""]
[null,10,"宮前・大日・杣宮","MIYAMAE・DAINITI・SOMAMIYA","火","金",null,"第",4,"月",null,"第",2,"木",null,"第",null,"水",null,"第",null,null,null,"第",3,"木",null,"第",2,"月",null,"第",4,"月","TUESDAY","FRIDAY",null,"第","FOURTH","MONDAY",null,"第","SECOND","THURSDAY",null,"第","","WEDNESDAY",null,"第","","",null,"第","THIRD","THURSDAY",null,"第","SECOND","MONDAY","第","FOURTH","MONDAY"]
[null,11,"城山","SHIROYAMA","月","木",null,"第",1,"水",null,"第",3,"水",null,"第",null,"火",null,"第",null,null,null,"第",4,"水",null,"第",2,"水",null,"第",4,"火","MONDAY","THURSDAY",null,"第","FIRST","WEDNESDAY",null,"第","THIRD","WEDNESDAY",null,"第","","TUESDAY",null,"第","","",null,"第","FOURTH","WEDNESDAY",null,"第","SECOND","WEDNESDAY","第","FOURTH","TUESDAY"]
[null,12,"清水","SHIMIZU","火","金",null,"第",4,"月",null,"第",2,"木",null,"第",null,"水",null,"第",null,null,null,"第",2,"月",null,"第",4,"木",null,"第",4,"月",{"$f":"IF(E13=\"\",\"\",IF(E13=\"月\",\"MONDAY\",IF(E13=\"火\",\"TUESDAY\",IF(E13=\"水\",\"WEDNESDAY\",IF(E13=\"木\",\"THURSDAY\",IF(E13=\"金\",\"FRIDAY\",IF(E13=\"土\",\"SATURDAY\",\"\")))))))","v":"TUESDAY"},{"$f":"IF(F13=\"\",\"\",IF(F13=\"月\",\"MONDAY\",IF(F13=\"火\",\"TUESDAY\",IF(F13=\"水\",\"WEDNESDAY\",IF(F13=\"木\",\"THURSDAY\",IF(F13=\"金\",\"FRIDAY\",\"\"))))))","v":"FRIDAY"},null,"第",{"$f":"IF(I13=\"\",\"\",IF(I13=1,\"FIRST\",IF(I13=2,\"SECOND\",IF(I13=3,\"THIRD\",IF(I13=4,\"FOURTH\",\"\")))))","v":"FOURTH"},{"$f":"IF(J13=\"\",\"\",IF(J13=\"月\",\"MONDAY\",IF(J13=\"火\",\"TUESDAY\",IF(J13=\"水\",\"WEDNESDAY\",IF(J13=\"木\",\"THURSDAY\",IF(J13=\"金\",\"FRIDAY\",IF(J13=\"土\",\"SATURDAY\",\"\")))))))","v":"MONDAY"},null,"第",{"$f":"IF(M13=\"\",\"\",IF(M13=1,\"FIRST\",IF(M13=2,\"SECOND\",IF(M13=3,\"THIRD\",IF(M13=4,\"FOURTH\",\"\")))))","v":"SECOND"},{"$f":"IF(N13=\"\",\"\",IF(N13=\"月\",\"MONDAY\",IF(N13=\"火\",\"TUESDAY\",IF(N13=\"水\",\"WEDNESDAY\",IF(N13=\"木\",\"THURSDAY\",IF(N13=\"金\",\"FRIDAY\",IF(N13=\"土\",\"SATURDAY\",\"\")))))))","v":"THURSDAY"},null,"第",{"$f":"IF(Q13=\"\",\"\",IF(Q13=1,\"FIRST\",IF(Q13=2,\"SECOND\",IF(Q13=3,\"THIRD\",IF(Q13=4,\"FOURTH\",\"\")))))","v":""},{"$f":"IF(R13=\"\",\"\",IF(R13=\"月\",\"MONDAY\",IF(R13=\"火\",\"TUESDAY\",IF(R13=\"水\",\"WEDNESDAY\",IF(R13=\"木\",\"THURSDAY\",IF(R13=\"金\",\"FRIDAY\",IF(R13=\"土\",\"SATURDAY\",\"\")))))))","v":"WEDNESDAY"},null,"第",{"$f":"IF(U13=\"\",\"\",IF(U13=1,\"FIRST\",IF(U13=2,\"SECOND\",IF(U13=3,\"THIRD\",IF(U13=4,\"FOURTH\",\"\")))))","v":""},{"$f":"IF(V13=\"\",\"\",IF(V13=\"月\",\"MONDAY\",IF(V13=\"火\",\"TUESDAY\",IF(V13=\"水\",\"WEDNESDAY\",IF(V13=\"木\",\"THURSDAY\",IF(V13=\"金\",\"FRIDAY\",IF(V13=\"土\",\"SATURDAY\",\"\")))))))","v":""},null,"第",{"$f":"IF(Y13=\"\",\"\",IF(Y13=1,\"FIRST\",IF(Y13=2,\"SECOND\",IF(Y13=3,\"THIRD\",IF(Y13=4,\"FOURTH\",\"\")))))","v":"SECOND"},{"$f":"IF(Z13=\"\",\"\",IF(Z13=\"月\",\"MONDAY\",IF(Z13=\"火\",\"TUESDAY\",IF(Z13=\"水\",\"WEDNESDAY\",IF(Z13=\"木\",\"THURSDAY\",IF(Z13=\"金\",\"FRIDAY\",IF(Z13=\"土\",\"SATURDAY\",\"\")))))))","v":"MONDAY"},null,"第",{"$f":"IF(AC13=\"\",\"\",IF(AC13=1,\"FIRST\",IF(AC13=2,\"SECOND\",IF(AC13=3,\"THIRD\",IF(AC13=4,\"FOURTH\",\"\")))))","v":"FOURTH"},{"$f":"IF(AD13=\"\",\"\",IF(AD13=\"月\",\"MONDAY\",IF(AD13=\"火\",\"TUESDAY\",IF(AD13=\"水\",\"WEDNESDAY\",IF(AD13=\"木\",\"THURSDAY\",IF(AD13=\"金\",\"FRIDAY\",IF(AD13=\"土\",\"SATURDAY\",\"\")))))))","v":"THURSDAY"},"第",{"$f":"IF(AG13=\"\",\"\",IF(AG13=1,\"FIRST\",IF(AG13=2,\"SECOND\",IF(AG13=3,\"THIRD\",IF(AG13=4,\"FOURTH\",\"\")))))","v":"FOURTH"},{"$f":"IF(AH13=\"\",\"\",IF(AH13=\"月\",\"MONDAY\",IF(AH13=\"火\",\"TUESDAY\",IF(AH13=\"水\",\"WEDNESDAY\",IF(AH13=\"木\",\"THURSDAY\",IF(AH13=\"金\",\"FRIDAY\",IF(AH13=\"土\",\"SATURDAY\",\"\")))))))","v":"MONDAY"}]
[null,13,"中町・丸一・下町","NAKAMATI・MARUITI・SHIMOMATI","火","金",null,"第",4,"月",null,"第",1,"木",null,"第",null,"水",null,"第",null,null,null,"第",2,"月",null,"第",4,"木",null,"第",4,"月","TUESDAY","FRIDAY",null,"第","FOURTH","MONDAY",null,"第","FIRST","THURSDAY",null,"第","","WEDNESDAY",null,"第","","",null,"第","SECOND","MONDAY",null,"第","FOURTH","THURSDAY","第","FOURTH","MONDAY"]
[null,14,"前田","MAEDA","火","金",null,"第",4,"月",null,"第",1,"木",null,"第",null,"水",null,"第",null,null,null,"第",2,"月",null,"第",4,"木",null,"第",4,"月","TUESDAY","FRIDAY",null,"第","FOURTH","MONDAY",null,"第","FIRST","THURSDAY",null,"第","","WEDNESDAY",null,"第","","",null,"第","SECOND","MONDAY",null,"第","FOURTH","THURSDAY","第","FOURTH","MONDAY"]
[null,15,"栄町","SAKAEMATI","火","金",null,"第",1,"月",null,"第",1,"木",null,"第",null,"水",null,"第",null,null,null,"第",2,"月",null,"第",4,"木",null,"第",4,"月","TUESDAY","FRIDAY",null,"第","FIRST","MONDAY",null,"第","FIRST","THURSDAY",null,"第","","WEDNESDAY",null,"第","","",null,"第","SECOND","MONDAY",null,"第","FOURTH","THURSDAY","第","FOURTH","MONDAY"]
[null,16,"新宿","SHINJYUKU","火","金",null,"第",1,"月",null,"第",2,"木",null,"第",null,"水",null,"第",null,null,null,"第",2,"月",null,"第",4,"木",null,"第",1,"火","TUESDAY","FRIDAY",null,"第","FIRST","MONDAY",null,"第","SECOND","THURSDAY",null,"第","","WEDNESDAY",null,"第","","",null,"第","SECOND","MONDAY",null,"第","FOURTH","THURSDAY","第","FIRST","TUESDAY"]
[null,17,"末広","SUEHIRO","火","金",null,"第",4,"月",null,"第",2,"木",null,"第",null,"水",null,"第",null,null,null,"第",2,"月",null,"第",4,"木",null,"第",1,"火","TUESDAY","FRIDAY",null,"第","FOURTH","MONDAY",null,"第","SECOND","THURSDAY",null,"第","","WEDNESDAY",null,"第","","",null,"第","SECOND","MONDAY",null,"第","FOURTH","THURSDAY","第","FIRST","TUESDAY"]
[null,18,"神明・大開","SHINMEI・DAIKAI","火","金",null,"第",1,"月",null,"第",2,"木",null,"第",null,"水",null,"第",null,null,null,"第",2,"月",null,"第",4,"木",null,"第",1,"火","TUESDAY","FRIDAY",null,"第","FIRST","MONDAY",null,"第","SECOND","THURSDAY",null,"第","","WEDNESDAY",null,"第","","",null,"第","SECOND","MONDAY",null,"第","FOURTH","THURSDAY","第","FIRST","TUESDAY"]
[null,19,"宿原・平井・与呂木・与呂木青葉台","SYUKUHARA・HIRAI・YOROKI・YOROKIAOBADAI","火","金",null,"第",3,"月",null,"第",3,"木",null,"第",null,"水",null,"第",null,null,null,"第",4,"月",null,"第",2,"木",null,"第",4,"月","TUESDAY","FRIDAY",null,"第","THIRD","MONDAY",null,"第","THIRD","THURSDAY",null,"第","","WEDNESDAY",null,"第","","",null,"第","FOURTH","MONDAY",null,"第","SECOND","THURSDAY","第","FOURTH","MONDAY"]
[null,20,"久留美・岩宮","KURUMU・IWAMIYA","火","金",null,"第",3,"月",null,"第",3,"木",null,"第",null,"水",null,"第",null,null,null,"第",4,"月",null,"第",2,"木",null,"第",4,"月","TUESDAY","FRIDAY",null,"第","THIRD","MONDAY",null,"第","THIRD","THURSDAY",null,"第","","WEDNESDAY",null,"第","","",null,"第","FOURTH","MONDAY",null,"第","SECOND","THURSDAY","第","FOURTH","MONDAY"]
[null,21,"跡部・市住跡部","ATOBE・SHIJYUUATOBE","火","金",null,"第",3,"月",null,"第",3,"木",null,"第",null,"水",null,"第",null,null,null,"第",4,"月",null,"第",2,"木",null,"第",1,"火","TUESDAY","FRIDAY",null,"第","THIRD","MONDAY",null,"第","THIRD","THURSDAY",null,"第","","WEDNESDAY",null,"第","","",null,"第","FOURTH","MONDAY",null,"第","SECOND","THURSDAY","第","FIRST","TUESDAY"]
[null,22,"加佐東・加佐八幡本・加佐西","KASAHIGASHI・KASAHATIMANMOTO・KASANISHI","月","木",null,"第",3,"火",null,"第",2,"金",null,"第",null,"水",null,"第",null,null,null,"第",3,"金",null,"第",4,"金",null,"第",1,"火","MONDAY","THURSDAY",null,"第","THIRD","TUESDAY",null,"第","SECOND","FRIDAY",null,"第","","WEDNESDAY",null,"第","","",null,"第","THIRD","FRIDAY",null,"第","FOURTH","FRIDAY","第","FIRST","TUESDAY"]
[null,23,"ローレルハイツ三木","ROURERUHAITUMIKI","火","金",null,"第",1,"月",null,"第",2,"木",null,"第",null,"水",null,"第",null,null,null,"第",2,"月",null,"第",4,"木",null,"第",1,"火","TUESDAY","FRIDAY",null,"第","FIRST","MONDAY",null,"第","SECOND","THURSDAY",null,"第","","WEDNESDAY",null,"第","","",null,"第","SECOND","MONDAY",null,"第","FOURTH","THURSDAY","第","FIRST","TUESDAY"]
[null,24,"向陽園","KOUYOUEN","火","金",null,"第",1,"月",null,"第",2,"木",null,"第",null,"水",null,"第",null,null,null,"第",3,"木",null,"第",4,"月",null,"第",1,"火","TUESDAY","FRIDAY",null,"第","FIRST","MONDAY",null,"第","SECOND","THURSDAY",null,"第","","WEDNESDAY",null,"第","","",null,"第","THIRD","THURSDAY",null,"第","FOURTH","MONDAY","第","FIRST","TUESDAY"]
[null,25,"平田・加佐育英ハイツ","HIRATA・KASAIKUEIHAITU","月","木",null,"第",3,"火",null,"第",2,"金",null,"第",null,"水",null,"第",null,null,null,"第",4,"火",null,"第",3,"金",null,"第",1,"火","MONDAY","THURSDAY",null,"第","THIRD","TUESDAY",null,"第","SECOND","FRIDAY",null,"第","","WEDNESDAY",null,"第","","",null,"第","FOURTH","TUESDAY",null,"第","THIRD","FRIDAY","第","FIRST","TUESDAY"]
[null,26,"大村","OOMURA","月","木",null,"第",3,"火",null,"第",2,"金",null,"第",null,"水",null,"第",null,null,null,"第",4,"火",null,"第",3,"金",null,"第",1,"火","MONDAY","THURSDAY",null,"第","THIRD","TUESDAY",null,"第","SECOND","FRIDAY",null,"第","","WEDNESDAY",null,"第","","",null,"第","FOURTH","TUESDAY",null,"第","THIRD","FRIDAY","第","FIRST","TUESDAY"]
[null,27,"鳥町","TORIMATI","月","木",null,"第",4,"水",null,"第",3,"金",null,"第",null,"火",null,"第",null,null,null,"第",4,"金",null,"第",3,"水",null,"第",1,"火","MONDAY","THURSDAY",null,"第","FOURTH","WEDNESDAY",null,"第","THIRD","FRIDAY",null,"第","","TUESDAY",null,"第","","",null,"第","FOURTH","FRIDAY",null,"第","THIRD","WEDNESDAY","第","FIRST","TUESDAY"]
[null,28,"新広陽・小林桜が丘","SHINKOUYOU・KOBAYASHISAKURAGAOKA","月","木",null,"第",1,"水",null,"第",3,"水",null,"第",null,"金",null,"第",null,null,null,"第",4,"水",null,"第",2,"水",null,"第",4,"火","MONDAY","THURSDAY",null,"第","FIRST","WEDNESDAY",null,"第","THIRD","WEDNESDAY",null,"第","","FRIDAY",null,"第","","",null,"第","FOURTH","WEDNESDAY",null,"第","SECOND","WEDNESDAY","第","FOURTH","TUESDAY"]
[null,29,"ローレルハイツ北神戸","ROURERUHAITUKITAKOUBE","月","木",null,"第",1,"水",null,"第",3,"水",null,"第",null,"火",null,"第",null,null,null,"第",4,"水",null,"第",2,"水",null,"第",4,"火","MONDAY","THURSDAY",null,"第","FIRST","WEDNESDAY",null,"第","THIRD","WEDNESDAY",null,"第","","TUESDAY",null,"第","","",null,"第","FOURTH","WEDNESDAY",null,"第","SECOND","WEDNESDAY","第","FOURTH","TUESDAY"]
[null,30,"さつき台","SATUKIDAI","月","木",null,"第",1,"水",null,"第",3,"水",null,"第",null,"火",null,"第",null,null,null,"第",4,"水",null,"第",2,"水",null,"第",4,"火","MONDAY","THURSDAY",null,"第","FIRST","WEDNESDAY",null,"第","THIRD","WEDNESDAY",null,"第","","TUESDAY",null,"第","","",null,"第","FOURTH","WEDNESDAY",null,"第","SECOND","WEDNESDAY","第","FOURTH","TUESDAY"]
[null,31,"高木・高木県住・東這田・西這田北・西這田南・花尻・石野・下石野","TAKAGI・TAKAGIKENJYUU・HIGASHIHOUDA・NISIHOUDAKITA・NISIHOUDAMINAMI・HANAJIRI・ISINO・SIMOISINO","月","木",null,"第",2,"金",null,"第",3,"金",null,"第",null,"水",null,"第",null,null,null,"第",2,"火",null,"第",3,"火",null,"第",1,"土","MONDAY","THURSDAY",null,"第","SECOND","FRIDAY",null,"第","THIRD","FRIDAY",null,"第","","WEDNESDAY",null,"第","","",null,"第","SECOND","TUESDAY",null,"第","THIRD","TUESDAY","第","FIRST","SATURDAY"]
[null,32,"正法寺・和田","SYOUBOUJI・WADA","月","木",null,"第",4,"水",null,"第",3,"金",null,"第",null,"火",null,"第",null,null,null,"第",4,"金",null,"第",3,"水",null,"第",1,"土","MONDAY","THURSDAY",null,"第","FOURTH","WEDNESDAY",null,"第","THIRD","FRIDAY",null,"第","","TUESDAY",null,"第","","",null,"第","FOURTH","FRIDAY",null,"第","THIRD","WEDNESDAY","第","FIRST","SATURDAY"]
[null,33,"近藤","KONDOU","月","木",null,"第",4,"水",null,"第",3,"金",null,"第",null,"火",null,"第",null,null,null,"第",4,"金",null,"第",3,"水",null,"第",1,"土","MONDAY","THURSDAY",null,"第","FOURTH","WEDNESDAY",null,"第","THIRD","FRIDAY",null,"第","","TUESDAY",null,"第","","",null,"第","FOURTH","FRIDAY",null,"第","THIRD","WEDNESDAY","第","FIRST","SATURDAY"]
[null,34,"相野・興治(東這田の一部)","AINO・OKIHARU・","月","木",null,"第",3,"金",null,"第",2,"金",null,"第",null,"水",null,"第",null,null,null,"第",2,"火",null,"第",3,"火",null,"第",1,"土",{"$f":"IF(E35=\"\",\"\",IF(E35=\"月\",\"MONDAY\",IF(E35=\"火\",\"TUESDAY\",IF(E35=\"水\",\"WEDNESDAY\",IF(E35=\"木\",\"THURSDAY\",IF(E35=\"金\",\"FRIDAY\",IF(E35=\"土\",\"SATURDAY\",\"\")))))))","v":"MONDAY"},{"$f":"IF(F35=\"\",\"\",IF(F35=\"月\",\"MONDAY\",IF(F35=\"火\",\"TUESDAY\",IF(F35=\"水\",\"WEDNESDAY\",IF(F35=\"木\",\"THURSDAY\",IF(F35=\"金\",\"FRIDAY\",\"\"))))))","v":"THURSDAY"},null,"第",{"$f":"IF(I35=\"\",\"\",IF(I35=1,\"FIRST\",IF(I35=2,\"SECOND\",IF(I35=3,\"THIRD\",IF(I35=4,\"FOURTH\",\"\")))))","v":"THIRD"},{"$f":"IF(J35=\"\",\"\",IF(J35=\"月\",\"MONDAY\",IF(J35=\"火\",\"TUESDAY\",IF(J35=\"水\",\"WEDNESDAY\",IF(J35=\"木\",\"THURSDAY\",IF(J35=\"金\",\"FRIDAY\",IF(J35=\"土\",\"SATURDAY\",\"\")))))))","v":"FRIDAY"},null,"第",{"$f":"IF(M35=\"\",\"\",IF(M35=1,\"FIRST\",IF(M35=2,\"SECOND\",IF(M35=3,\"THIRD\",IF(M35=4,\"FOURTH\",\"\")))))","v":"SECOND"},{"$f":"IF(N35=\"\",\"\",IF(N35=\"月\",\"MONDAY\",IF(N35=\"火\",\"TUESDAY\",IF(N35=\"水\",\"WEDNESDAY\",IF(N35=\"木\",\"THURSDAY\",IF(N35=\"金\",\"FRIDAY\",IF(N35=\"土\",\"SATURDAY\",\"\")))))))","v":"FRIDAY"},null,"第",{"$f":"IF(Q35=\"\",\"\",IF(Q35=1,\"FIRST\",IF(Q35=2,\"SECOND\",IF(Q35=3,\"THIRD\",IF(Q35=4,\"FOURTH\",\"\")))))","v":""},{"$f":"IF(R35=\"\",\"\",IF(R35=\"月\",\"MONDAY\",IF(R35=\"火\",\"TUESDAY\",IF(R35=\"水\",\"WEDNESDAY\",IF(R35=\"木\",\"THURSDAY\",IF(R35=\"金\",\"FRIDAY\",IF(R35=\"土\",\"SATURDAY\",\"\")))))))","v":"WEDNESDAY"},null,"第",{"$f":"IF(U35=\"\",\"\",IF(U35=1,\"FIRST\",IF(U35=2,\"SECOND\",IF(U35=3,\"THIRD\",IF(U35=4,\"FOURTH\",\"\")))))","v":""},{"$f":"IF(V35=\"\",\"\",IF(V35=\"月\",\"MONDAY\",IF(V35=\"火\",\"TUESDAY\",IF(V35=\"水\",\"WEDNESDAY\",IF(V35=\"木\",\"THURSDAY\",IF(V35=\"金\",\"FRIDAY\",IF(V35=\"土\",\"SATURDAY\",\"\")))))))","v":""},null,"第",{"$f":"IF(Y35=\"\",\"\",IF(Y35=1,\"FIRST\",IF(Y35=2,\"SECOND\",IF(Y35=3,\"THIRD\",IF(Y35=4,\"FOURTH\",\"\")))))","v":"SECOND"},{"$f":"IF(Z35=\"\",\"\",IF(Z35=\"月\",\"MONDAY\",IF(Z35=\"火\",\"TUESDAY\",IF(Z35=\"水\",\"WEDNESDAY\",IF(Z35=\"木\",\"THURSDAY\",IF(Z35=\"金\",\"FRIDAY\",IF(Z35=\"土\",\"SATURDAY\",\"\")))))))","v":"TUESDAY"},null,"第",{"$f":"IF(AC35=\"\",\"\",IF(AC35=1,\"FIRST\",IF(AC35=2,\"SECOND\",IF(AC35=3,\"THIRD\",IF(AC35=4,\"FOURTH\",\"\")))))","v":"THIRD"},{"$f":"IF(AD35=\"\",\"\",IF(AD35=\"月\",\"MONDAY\",IF(AD35=\"火\",\"TUESDAY\",IF(AD35=\"水\",\"WEDNESDAY\",IF(AD35=\"木\",\"THURSDAY\",IF(AD35=\"金\",\"FRIDAY\",IF(AD35=\"土\",\"SATURDAY\",\"\")))))))","v":"TUESDAY"},"第","FIRST","SATURDAY"]
[null,35,"小林","KOBAYASHI","月","木",null,"第",1,"水",null,"第",3,"水",null,"第",null,"金",null,"第",null,null,null,"第",4,"水",null,"第",2,"水",null,"第",1,"土","MONDAY","THURSDAY",null,"第","FIRST","WEDNESDAY",null,"第","THIRD","WEDNESDAY",null,"第","","FRIDAY",null,"第","","",null,"第","FOURTH","WEDNESDAY",null,"第","SECOND","WEDNESDAY","第","FIRST","SATURDAY"]
[null,36,"大山・巴団地","OOYAMA・TOMOEDANTI","月","木",null,"第",3,"金",null,"第",2,"金",null,"第",null,"水",null,"第",null,null,null,"第",2,"火",null,"第",3,"火",null,"第",1,"土","MONDAY","THURSDAY",null,"第","THIRD","FRIDAY",null,"第","SECOND","FRIDAY",null,"第","","WEDNESDAY",null,"第","","",null,"第","SECOND","TUESDAY",null,"第","THIRD","TUESDAY","第","FIRST","SATURDAY"]
[null,37,"朝日ヶ丘・朝日ヶ丘南","ASAHIGAOKA・ASAHIGAOKAMINAMI","月","木",null,"第",4,"水",null,"第",2,"金",null,"第",null,"火",null,"第",null,null,null,"第",4,"金",null,"第",3,"水",null,"第",1,"土","MONDAY","THURSDAY",null,"第","FOURTH","WEDNESDAY",null,"第","SECOND","FRIDAY",null,"第","","TUESDAY",null,"第","","",null,"第","FOURTH","FRIDAY",null,"第","THIRD","WEDNESDAY","第","FIRST","SATURDAY"]
[null,38,"戸田・三津田・御坂・大谷・井上・志染中・安福田・窟屋・高男寺・細目・四合谷","TODA・MITSUDA・MISAKA・OOTANI・INOUE・SIJIMINAKA・ABUTA・IWAYA・KOUNANJI・HOSOME・SIGOUDANI","月","木",null,"第",4,"火",null,"第",3,"金",null,"第",null,"水",null,"第",null,null,null,"第",3,"火",null,"第",2,"火",null,"第",4,"火","MONDAY","THURSDAY",null,"第","FOURTH","TUESDAY",null,"第","THIRD","FRIDAY",null,"第","","WEDNESDAY",null,"第","","",null,"第","THIRD","TUESDAY",null,"第","SECOND","TUESDAY","第","FOURTH","TUESDAY"]
[null,39,"吉田・東吉田","YOSIDA・HIGASIYOSIDA","月","木",null,"第",4,"火",null,"第",3,"金",null,"第",null,"水",null,"第",null,null,null,"第",3,"火",null,"第",2,"火",null,"第",4,"火","MONDAY","THURSDAY",null,"第","FOURTH","TUESDAY",null,"第","THIRD","FRIDAY",null,"第","","WEDNESDAY",null,"第","","",null,"第","THIRD","TUESDAY",null,"第","SECOND","TUESDAY","第","FOURTH","TUESDAY"]
[null,40,"広野１丁目～６丁目","HIRONO 1 TYOUME～HIRONO 6 TYOUME","月","木",null,"第",1,"金",null,"第",3,"金",null,"第",null,"火",null,"第",null,null,null,"第",4,"水",null,"第",2,"水",null,"第",4,"火","MONDAY","THURSDAY",null,"第","FIRST","FRIDAY",null,"第","THIRD","FRIDAY",null,"第","","TUESDAY",null,"第","","",null,"第","FOURTH","WEDNESDAY",null,"第","SECOND","WEDNESDAY","第","FOURTH","TUESDAY"]
[null,41,"広野７丁目～８丁目","HIRONO 7 TYOUME～HIRONO 8 TYOUME","月","木",null,"第",1,"金",null,"第",3,"金",null,"第",null,"火",null,"第",null,null,null,"第",4,"水",null,"第",2,"水",null,"第",4,"火","MONDAY","THURSDAY",null,"第","FIRST","FRIDAY",null,"第","THIRD","FRIDAY",null,"第","","TUESDAY",null,"第","","",null,"第","FOURTH","WEDNESDAY",null,"第","SECOND","WEDNESDAY","第","FOURTH","TUESDAY"]
[null,42,"大二谷・小二谷・入野・上南・荻谷・下南・原坂・上芝原・鍛治・下芝原・谷口","OOHUTADANI・KOHUTADANI・IRINO・KAMIMINAMI・OGIDANI・SIMOMINAMI・HARASAKA・KAMISIBAHARA・KAJI・SIMOSIBAHARA・TANIGUTI","月","木",null,"第",4,"火",null,"第",2,"金",null,"第",null,"水",null,"第",null,null,null,"第",3,"火",null,"第",2,"火",null,"第",4,"木","MONDAY","THURSDAY",null,"第","FOURTH","TUESDAY",null,"第","SECOND","FRIDAY",null,"第","","WEDNESDAY",null,"第","","",null,"第","THIRD","TUESDAY",null,"第","SECOND","TUESDAY","第","FOURTH","THURSDAY"]
[null,43,"増田・大柿・佐野・金屋・桃津・草加野・高篠・高畑・脇川・細川中上・細川中・西","MASUDA・OOGAKI・SANO・KANAYA・MOMODU・SOUKANO・TAKASINO・TAKAHATA・WAKIGAWA・HOSOKAWANAKAKAMI・NISI","火","金",null,"第",2,"月",null,"第",4,"木",null,"第",null,"水",null,"第",null,null,null,"第",3,"水",null,"第",3,"月",null,"第",4,"木","TUESDAY","FRIDAY",null,"第","SECOND","MONDAY",null,"第","FOURTH","THURSDAY",null,"第","","WEDNESDAY",null,"第","","",null,"第","THIRD","WEDNESDAY",null,"第","THIRD","MONDAY","第","FOURTH","THURSDAY"]
[null,44,"久次、里脇、槙、大島、南畑、保木、東、馬場、蓮花寺","HISATUGI・SATOWAKI・MAKI・OOSIMA・MINAMIHATA・HOKI・HIGASI・BABA・RENNGEJI","火","金",null,"第",2,"月",null,"第",2,"木",null,"第",null,"水",null,"第",null,null,null,"第",4,"木",null,"第",3,"木",null,"第",4,"木","TUESDAY","FRIDAY",null,"第","SECOND","MONDAY",null,"第","SECOND","THURSDAY",null,"第","","WEDNESDAY",null,"第","","",null,"第","FOURTH","THURSDAY",null,"第","THIRD","THURSDAY","第","FOURTH","THURSDAY"]
[null,45,"笹原、殿畑、桾原、東中、西中、桃坂","SASAHARA・TONOHATA・KUNUGIHARA・HIGASINAKA・NISINAKA・MOMOSAKA","火","金",null,"第",2,"月",null,"第",2,"木",null,"第",null,"水",null,"第",null,null,null,"第",4,"木",null,"第",3,"木",null,"第",4,"木","TUESDAY","FRIDAY",null,"第","SECOND","MONDAY",null,"第","SECOND","THURSDAY",null,"第","","WEDNESDAY",null,"第","","",null,"第","FOURTH","THURSDAY",null,"第","THIRD","THURSDAY","第","FOURTH","THURSDAY"]
[null,46,"緑が丘町東","MIDORIGAOKATYOUHIGASHI","火","金",null,"第",1,"木",null,"第",3,"木",null,"第",null,"水",null,"第",null,null,null,"第",2,"木",null,"第",4,"木",null,"第",3,"火","TUESDAY","FRIDAY",null,"第","FIRST","THURSDAY",null,"第","THIRD","THURSDAY",null,"第","","WEDNESDAY",null,"第","","",null,"第","SECOND","THURSDAY",null,"第","FOURTH","THURSDAY","第","THIRD","TUESDAY"]
[null,47,"緑が丘町中","MIDORIGAOKATYOUNAKA","火","金",null,"第",2,"木",null,"第",4,"木",null,"第",null,"水",null,"第",null,null,null,"第",4,"月",null,"第",1,"木",null,"第",3,"火","TUESDAY","FRIDAY",null,"第","SECOND","THURSDAY",null,"第","FOURTH","THURSDAY",null,"第","","WEDNESDAY",null,"第","","",null,"第","FOURTH","MONDAY",null,"第","FIRST","THURSDAY","第","THIRD","TUESDAY"]
[null,48,"緑が丘町西","MIDORIGAOKATIYOUNISHI","火","金",null,"第",3,"木",null,"第",4,"木",null,"第",null,"水",null,"第",null,null,null,"第",4,"月",null,"第",2,"木",null,"第",3,"火","TUESDAY","FRIDAY",null,"第","THIRD","THURSDAY",null,"第","FOURTH","THURSDAY",null,"第","","WEDNESDAY",null,"第","","",null,"第","FOURTH","MONDAY",null,"第","SECOND","THURSDAY","第","THIRD","TUESDAY"]
[null,49,"緑が丘町本町","MIDORIGAOKATYOUHONMATI","火","金",null,"第",3,"木",null,"第",4,"木",null,"第",null,"水",null,"第",null,null,null,"第",2,"木",null,"第",4,"月",null,"第",3,"火","TUESDAY","FRIDAY",null,"第","THIRD","THURSDAY",null,"第","FOURTH","THURSDAY",null,"第","","WEDNESDAY",null,"第","","",null,"第","SECOND","THURSDAY",null,"第","FOURTH","MONDAY","第","THIRD","TUESDAY"]
[null,50,"東自由が丘(東自由が丘１丁目・あかねが丘・自由が丘北)","HIGASIJIYUUGAOKA(HIGASIJIYUUGAOKA 1 TYOUME,AKANEGAOKA,JIYUUGAOKAKITA)","月","木",null,"第",2,"水",null,"第",3,"金",null,"第",null,"火",null,"第",null,null,null,"第",3,"水",null,"第",4,"水",null,"第",4,"土","MONDAY","THURSDAY",null,"第","SECOND","WEDNESDAY",null,"第","THIRD","FRIDAY",null,"第","","TUESDAY",null,"第","","",null,"第","THIRD","WEDNESDAY",null,"第","FOURTH","WEDNESDAY","第","FOURTH","SATURDAY"]
[null,51,"中自由が丘〔自由が丘北(吉田の一部)・白菊(東自１の一部)・中自由が丘１丁目・中自由が丘２丁目〕","NAKAJIYUUGAOKA(JIYUUGAOKAKITA,SIRAGIKU,NAKAJIYUUGAOKA 1 TYOUME,NAKAJIYUUGAOKA 2 TYOUME)","月","木",null,"第",3,"水",null,"第",3,"金",null,"第",null,"火",null,"第",null,null,null,"第",2,"水",null,"第",4,"水",null,"第",4,"土","MONDAY","THURSDAY",null,"第","THIRD","WEDNESDAY",null,"第","THIRD","FRIDAY",null,"第","","TUESDAY",null,"第","","",null,"第","SECOND","WEDNESDAY",null,"第","FOURTH","WEDNESDAY","第","FOURTH","SATURDAY"]
[null,52,"西自由が丘(自由が丘西・学校北・ピアン・公団)","NISIJIYUUGAOKA(JIYUUGAOKANISI・GAKKOUKITA・PIAN・KOUDAN)","月","木",null,"第",2,"火",null,"第",4,"金",null,"第",null,"水",null,"第",null,null,null,"第",2,"金",null,"第",4,"火",null,"第",4,"土","MONDAY","THURSDAY",null,"第","SECOND","TUESDAY",null,"第","FOURTH","FRIDAY",null,"第","","WEDNESDAY",null,"第","","",null,"第","SECOND","FRIDAY",null,"第","FOURTH","TUESDAY","第","FOURTH","SATURDAY"]
[null,53,"自由が丘本町(あさひが丘・本町２丁目・本町３丁目)","JIYUUGAOKAHONMATI(ASAHIGAOKA・HONMATI 2 TYOUME・HONMATI 3 TYOUME)","月","木",null,"第",1,"火",null,"第",4,"金",null,"第",null,"水",null,"第",null,null,null,"第",2,"金",null,"第",4,"火",null,"第",4,"土","MONDAY","THURSDAY",null,"第","FIRST","TUESDAY",null,"第","FOURTH","FRIDAY",null,"第","","WEDNESDAY",null,"第","","",null,"第","SECOND","FRIDAY",null,"第","FOURTH","TUESDAY","第","FOURTH","SATURDAY"]
[null,54,"青山１丁目・青山２丁目","AOYAMA 1 TYOUME・AOYAMA 2 TYOUME","火","金",null,"第",4,"木",null,"第",2,"木",null,"第",null,"水",null,"第",null,null,null,"第",3,"月",null,"第",3,"木",null,"第",3,"火","TUESDAY","FRIDAY",null,"第","FOURTH","THURSDAY",null,"第","SECOND","THURSDAY",null,"第","","WEDNESDAY",null,"第","","",null,"第","THIRD","MONDAY",null,"第","THIRD","THURSDAY","第","THIRD","TUESDAY"]
[null,55,"青山３丁目","AOYAMA 3 TYOUME","火","金",null,"第",4,"木",null,"第",2,"木",null,"第",null,"水",null,"第",null,null,null,"第",3,"月",null,"第",3,"木",null,"第",3,"火","TUESDAY","FRIDAY",null,"第","FOURTH","THURSDAY",null,"第","SECOND","THURSDAY",null,"第","","WEDNESDAY",null,"第","","",null,"第","THIRD","MONDAY",null,"第","THIRD","THURSDAY","第","THIRD","TUESDAY"]
[null,56,"青山４丁目・青山５丁目","AOYAMA 4 TYOUME・AOYAMA 5 TYOUME","月","木",null,"第",4,"金",null,"第",2,"火",null,"第",null,"水",null,"第",null,null,null,"第",3,"金",null,"第",2,"金",null,"第",3,"火","MONDAY","THURSDAY",null,"第","FOURTH","FRIDAY",null,"第","SECOND","TUESDAY",null,"第","","WEDNESDAY",null,"第","","",null,"第","THIRD","FRIDAY",null,"第","SECOND","FRIDAY","第","THIRD","TUESDAY"]
[null,57,"青山６丁目","AOYAMA 6 TYOUME","月","木",null,"第",4,"金",null,"第",2,"火",null,"第",null,"水",null,"第",null,null,null,"第",3,"金",null,"第",2,"金",null,"第",3,"火","MONDAY","THURSDAY",null,"第","FOURTH","FRIDAY",null,"第","SECOND","TUESDAY",null,"第","","WEDNESDAY",null,"第","","",null,"第","THIRD","FRIDAY",null,"第","SECOND","FRIDAY","第","THIRD","TUESDAY"]
[null,58,"稲田、金会、福吉、毘沙門、市野瀬、東田、楠原、豊岡、南豊岡、緑台、米田","IANADA・KINNKAI・FUKUYOSI・BISYAMONN・ICHINOSE・HIGASIDA・KUSUHARA・TOYOOKA・MINAMITOYOOKA・MIDORIDAI・YONEDA・KITAMIZUKAMI・OKUDANI","月","木",null,"第",2,"金",null,"第",1,"金",null,"第",null,"水",null,"第",null,null,null,"第",3,"金",null,"第",4,"金",null,"第",2,"土","MONDAY","THURSDAY",null,"第","SECOND","FRIDAY",null,"第","FIRST","FRIDAY",null,"第","","WEDNESDAY",null,"第","","",null,"第","THIRD","FRIDAY",null,"第","FOURTH","FRIDAY","第","SECOND","SATURDAY"]
[null,59,"南水上、北水上、奥谷","MINAMIMIZUKAMI","月","木",null,"第",2,"金",null,"第",1,"金",null,"第",null,"水",null,"第",null,null,null,"第",3,"金",null,"第",4,"金",null,"第",2,"土","MONDAY","THURSDAY",null,"第","SECOND","FRIDAY",null,"第","FIRST","FRIDAY",null,"第","","WEDNESDAY",null,"第","","",null,"第","THIRD","FRIDAY",null,"第","FOURTH","FRIDAY","第","SECOND","SATURDAY"]
[null,60,"田谷、法光寺、湯谷、西奥、みなぎ台中、みなぎ台第５","TAYA・HOUKOUJI・YUDANI・NISIOKU・MINAGIDAINAKA・MINAGIDAIDAI5・・","月","木",null,"第",2,"金",null,"第",1,"金",null,"第",null,"水",null,"第",null,null,null,"第",3,"金",null,"第",4,"金",null,"第",2,"金","MONDAY","THURSDAY",null,"第","SECOND","FRIDAY",null,"第","FIRST","FRIDAY",null,"第","","WEDNESDAY",null,"第","","",null,"第","THIRD","FRIDAY",null,"第","FOURTH","FRIDAY","第","SECOND","FRIDAY"]
[null,61,"新田、上荒川、畑枝、福井、冨岡、前田、上中、古川、吉安上、吉安下、大沢","NITTA・KAMIAWAKAWA・HATAEDA・FUKUI・TOMIOKA・MAEDA・KAMINAKA・FURUKAWA・KICHIYASUKAMI・KICHIYASUSIMO・OOSO","火","金",null,"第",2,"木",null,"第",1,"木",null,"第",null,"水",null,"第",null,null,null,"第",3,"木",null,"第",4,"木",null,"第",2,"土","TUESDAY","FRIDAY",null,"第","SECOND","THURSDAY",null,"第","FIRST","THURSDAY",null,"第","","WEDNESDAY",null,"第","","",null,"第","THIRD","THURSDAY",null,"第","FOURTH","THURSDAY","第","SECOND","SATURDAY"]
[null,62,"実楽、大畑","JITURAKU・OOHATA","火","金",null,"第",2,"木",null,"第",1,"木",null,"第",null,"水",null,"第",null,null,null,"第",3,"木",null,"第",4,"木",null,"第",2,"金","TUESDAY","FRIDAY",null,"第","SECOND","THURSDAY",null,"第","FIRST","THURSDAY",null,"第","","WEDNESDAY",null,"第","","",null,"第","THIRD","THURSDAY",null,"第","FOURTH","THURSDAY","第","SECOND","FRIDAY"]
[null,63,"古市、有安、ひばりが丘、鍛冶屋、貸潮、渡瀬、出晴、山上、長谷、上松、みなぎ台北、みなぎ台東、みなぎ台南","FURUICHI・ARIYASU・HIBARIGAOKA・KAJIYA・KASIO・WATASE・DEHARE・UMANOUE・NAGATANI・UEMATU・MINAGIDAIKITA・MINAGIDAIHIGASI・MINAGIDAIMINAMI","火","金",null,"第",2,"木",null,"第",1,"木",null,"第",null,"水",null,"第",null,null,null,"第",3,"木",null,"第",4,"木",null,"第",2,"金","TUESDAY","FRIDAY",null,"第","SECOND","THURSDAY",null,"第","FIRST","THURSDAY",null,"第","","WEDNESDAY",null,"第","","",null,"第","THIRD","THURSDAY",null,"第","FOURTH","THURSDAY","第","SECOND","FRIDAY"]